bitfinex/quotes_ETHUSD_20240716
["timestamp","ask_amount","ask_price","bid_price","bid_amount"]
[1721130821791,2.92078,3423.8,3423.1,5.34432]
[1721130822362,2.92069,3423.9,3423.1,5.34432]
[1721130822618,2.92074,3423.8,3423.2,1.12768]
[1721130823994,2.92082,3423.7,3423.2,1.12768]
[1721130824317,2.92082,3423.7,3423.1,2.423]
[1721130825006,2.92074,3423.8,3423.1,5.34429]
[1721130825178,2.92082,3423.7,3423.1,5.34429]
[1721130825576,2.9207,3423.9,3423.1,5.34429]
[1721130825767,2.9206,3424.0,3423.1,5.34429]
[1721130825968,2.92075,3423.8,3423.2,1.127673]
[1721130826169,2.92087,3423.7,3423.1,2.423]
[1721130826676,2.9209,3423.6,3422.9,2.92144]
[1721130827080,2.92099,3423.5,3422.9,2.92144]
[1721130828094,2.92099,3423.5,3422.8,2.253]
[1721130828402,2.92111,3423.4,3422.8,5.17457]
[1721130828614,2.92111,3423.4,3422.8,6.28529]
[1721130828963,2.463,3423.8,3422.8,6.28529]
[1721130828964,2.92097,3423.6,3422.8,6.28529]
[1721130829403,2.92097,3423.6,3422.9,2.92148]
[1721130830000,2.921,3423.5,3422.9,2.92148]
[1721130831763,2.92085,3423.7,3422.9,2.92148]
[1721130831970,2.92058,3424.0,3423.2,2.92118]
[1721130832182,2.92058,3424.0,3423.3,5.39884]
[1721130832528,5.84122,3424.0,3423.3,5.39884]
[1721130832737,2.92064,3423.9,3423.3,5.39884]
[1721130833170,2.92064,3423.9,3423.3,6.230856]
[1721130833769,2.92047,3424.1,3423.3,6.230856]
[1721130834170,3.0,3424.0,3423.4,2.92106]
[1721130834873,3.0,3424.0,3423.4,2.921]
[1721130835073,3.0,3424.0,3423.5,0.6230716]
[1721130835281,3.0,3424.0,3423.5,3.5440516]
[1721130835483,2.92036,3424.3,3423.5,3.5440516]
[1721130835691,2.92036,3424.3,3423.5,6.4649716]
[1721130835975,10.28998,3424.7,3423.8,2.321]
[1721130836200,2.92009,3424.6,3424.0,2.92055]
[1721130837996,2.92013,3424.5,3424.0,2.92055]
[1721130838804,2.92013,3424.5,3423.8,2.321]
[1721130838979,2.92022,3424.4,3423.8,2.321]
[1721130840794,2.92022,3424.4,3423.7,2.9208]
[1721130841192,2.92022,3424.4,3423.5,2.3871]
[1721130841424,2.92057,3424.0,3423.5,2.3871]
[1721130841740,2.92057,3424.0,3423.4,2.92101]
[1721130841895,2.92033,3424.3,3423.4,2.92099]
[1721130842100,2.92022,3424.4,3423.8,2.92072]
[1721130843440,2.92043,3424.2,3423.6,2.92083]
[1721130843730,2.92047,3424.1,3423.5,2.3806]
[1721130843940,2.92048,3424.1,3423.5,6.42496]
[1721130844941,2.92034,3424.3,3423.6,2.92089]
[1721130845174,2.92018,3424.5,3423.7,2.92073]
[1721130845313,2.92018,3424.5,3423.8,3.563181]
[1721130845515,5.84039,3424.5,3423.8,3.563181]
[1721130846135,2.92018,3424.5,3423.8,3.563181]
[1721130846906,2.92026,3424.4,3423.8,0.642471]
[1721130847098,2.92026,3424.4,3423.7,2.92076]
[1721130847505,2.92026,3424.4,3423.7,2.92075]
[1721130848726,2.92026,3424.4,3423.8,2.92068]
[1721130851616,5.36946,3424.4,3423.8,2.92068]
[1721130851847,5.36946,3424.4,3423.7,2.9208]
[1721130852031,5.36946,3424.4,3423.5,5.30154]
[1721130852032,3.278151,3424.4,3423.5,8.22247]
[1721130852355,2.4492,3424.4,3423.5,5.30153]
[1721130853055,2.92052,3424.1,3423.5,5.30153]
[1721130854256,2.92052,3424.1,3423.5,2.92093]
[1721130854555,5.84106,3424.1,3423.3,2.92107]
[1721130854725,2.92052,3424.1,3423.4,2.92101]
[1721130855358,2.92052,3424.1,3423.3,3.748457]
[1721130855649,2.92052,3424.1,3423.3,2.92107]
[1721130856419,2.92065,3423.9,3423.3,2.92107]
[1721130856624,0.57900189,3423.8,3423.3,2.92107]
[1721130858877,2.92065,3423.9,3423.2,2.4315]
[1721130859028,2.92082,3423.7,3423.2,2.4315]
[1721130859224,0.57905534,3423.6,3423.2,2.4315]
[1721130860337,0.57905534,3423.6,3423.3,2.9211]
[1721130860538,0.57897166,3423.5,3423.4,2.92106]
[1721130860731,0.57897166,3423.9,3423.4,2.92106]
[1721130860952,0.57897166,3423.8,3423.4,2.92106]
[1721130861254,0.57897166,3423.7,3423.4,2.92106]
[1721130861453,0.57897166,3423.6,3423.4,3.8320642]
[1721130861660,0.57897166,3423.5,3423.4,3.8320642]
[1721130861820,0.57897166,3423.9,3423.4,3.8320642]
[1721130862022,2.92056,3424.0,3423.4,3.8320642]
[1721130862355,0.57900497,3423.9,3423.4,3.8320642]
[1721130862559,0.57900497,3423.9,3423.5,1.00210462]
[1721130863230,0.57900497,3423.9,3423.5,3.92308462]
[1721130865434,2.92056,3424.0,3423.5,3.92308462]
[1721130865658,0.57897101,3423.9,3423.5,3.92308462]
[1721130867034,0.57897101,3423.9,3423.6,2.4833]
[1721130867236,4.83922359,3424.5,3423.8,2.92072]
[1721130867237,3.0,3424.4,3423.8,2.92072]
[1721130867442,0.5788801,3424.3,3423.8,2.92072]
[1721130868857,0.57887869,3424.2,3423.8,2.92072]
[1721130869077,5.92024,3424.4,3423.8,2.92072]
[1721130869078,0.57887869,3424.1,3423.8,2.92072]
[1721130869292,0.57886395,3424.0,3423.8,3.753197]
[1721130869564,5.92024,3424.4,3423.9,2.92064]
[1721130869565,3.0,3424.4,3423.9,2.92064]
[1721130869755,0.57886164,3424.3,3423.9,2.92064]
[1721130870141,0.57886164,3424.3,3423.6,2.4833]
[1721130870473,2.92065,3423.9,3423.1,2.92128]
[1721130870764,3.49964164,3423.8,3423.1,2.92128]
[1721130870970,0.57886164,3423.7,3423.1,2.92128]
[1721130872037,0.57907347,3423.6,3423.1,2.92128]
[1721130872238,0.57907347,3423.5,3423.2,2.92123]
[1721130872438,0.57907347,3423.4,3423.2,2.92123]
[1721130872710,0.57907347,3423.3,3423.2,3.753711]
[1721130872837,0.57907347,3423.7,3423.2,3.753711]
[1721130873084,0.57907347,3423.6,3423.2,3.753711]
[1721130873247,2.92078,3423.8,3423.2,3.753711]
[1721130873248,0.57907347,3423.5,3423.2,3.753711]
[1721130873440,0.57907347,3423.4,3423.2,3.753711]
[1721130873639,0.57907347,3423.3,3423.2,3.753711]
[1721130874239,0.57907347,3423.7,3423.2,3.753711]
[1721130874436,0.57907347,3423.6,3423.2,2.92123]
[1721130874644,0.57907347,3423.5,3423.2,2.92123]
[1721130874886,0.57907347,3423.4,3423.2,2.92123]
[1721130875042,0.57907347,3423.3,3423.2,2.92123]
[1721130875390,2.92078,3423.8,3423.2,2.92123]
[1721130875391,0.57905922,3423.7,3423.2,2.92123]
[1721130876691,0.57905922,3423.7,3423.5,2.92098]
[1721130876994,3.0,3424.4,3423.8,2.92066]
[1721130877143,0.57887873,3424.3,3423.9,2.92064]
[1721130877489,5.92016,3424.5,3423.9,2.92064]
[1721130877490,0.57887873,3424.2,3424.0,2.4502]
[1721130877780,0.57887873,3424.1,3424.0,2.4502]
[1721130877948,0.57887873,3424.3,3424.0,2.4502]
[1721130878149,0.57887873,3424.2,3424.0,2.4502]
[1721130878354,0.57887873,3424.1,3424.0,2.4502]
[1721130878596,0.5788866,3424.1,3424.0,2.4502]
[1721130878744,0.5788866,3424.4,3423.9,2.92064]
[1721130878962,0.5788866,3424.3,3423.9,2.92064]
[1721130879162,0.5788866,3424.2,3423.9,2.92064]
[1721130879421,0.5788866,3424.1,3423.9,2.92064]
[1721130879598,0.5788866,3424.0,3423.9,2.92064]
[1721130880279,0.5788866,3424.4,3423.9,2.92064]
[1721130880470,0.5788866,3424.3,3423.9,2.92064]
[1721130880722,0.5788866,3424.2,3423.9,2.92064]
[1721130880896,0.5788866,3424.1,3424.0,2.92055]
[1721130881063,0.5788866,3424.5,3424.0,2.92055]
[1721130881289,0.5788866,3424.4,3424.0,2.92055]
[1721130881619,0.5788866,3424.3,3424.0,2.92055]
[1721130881832,3.0,3424.6,3424.0,2.92055]
[1721130881968,0.57886638,3424.5,3424.0,2.92055]
[1721130882322,3.0,3424.6,3424.0,2.92055]
[1721130882465,0.57886611,3424.5,3424.0,2.92055]
[1721130883507,0.57886611,3424.5,3423.8,2.92065]
[1721130883712,4.10339408,3424.5,3423.7,2.4502]
[1721130883879,2.92031,3424.3,3423.7,2.4502]
[1721130884079,0.57886611,3424.2,3423.7,2.4502]
[1721130884870,2.92031,3424.3,3423.7,2.4502]
[1721130885099,0.57892789,3424.2,3423.7,2.4502]
[1721130885296,0.57892972,3424.1,3423.7,5.371]
[1721130885499,0.57892972,3424.0,3423.7,5.371]
[1721130885727,0.57892972,3423.9,3423.7,2.4502]
[1721130885871,0.57892972,3423.8,3423.6,2.92083]
[1721130886075,0.57892972,3423.7,3423.6,2.92083]
[1721130886385,0.57892972,3424.1,3423.6,2.92083]
[1721130886568,0.57892972,3424.0,3423.6,2.92083]
[1721130886914,2.92044,3424.2,3423.6,2.92083]
[1721130886915,0.57892972,3423.9,3423.6,2.92083]
[1721130887221,0.57892972,3423.8,3423.6,2.92083]
[1721130887370,0.57892972,3423.7,3423.6,2.92083]
[1721130887571,0.57892972,3424.1,3423.6,2.92083]
[1721130887771,0.57892972,3424.0,3423.6,2.92083]
[1721130887983,2.92044,3424.2,3423.6,2.92083]
[1721130887984,0.57892972,3423.9,3423.6,2.92083]
[1721130888191,0.57892972,3423.8,3423.6,2.92083]
[1721130888391,0.57892972,3423.7,3423.6,2.92083]
[1721130888590,0.57896993,3424.1,3423.6,2.92083]
[1721130890969,0.57896993,3424.1,3423.6,3.739047]
[1721130891172,0.57896993,3424.0,3423.8,2.92068]
[1721130891374,0.57896993,3423.9,3423.8,2.92068]
[1721130891582,0.57896993,3424.3,3423.8,2.92068]
[1721130891802,2.92022,3424.4,3423.8,2.92068]
[1721130892084,0.57893077,3424.3,3423.8,2.92068]
[1721130893125,0.57893077,3424.3,3423.8,5.84135]
[1721130893620,0.57893077,3424.3,3423.9,2.465]
[1721130893936,0.57893077,3424.2,3423.9,2.465]
[1721130894130,0.57893077,3424.1,3424.0,2.92055]
[1721130894288,0.57893077,3424.5,3424.0,2.92055]
[1721130894493,0.57893077,3424.4,3424.0,3.81776767]
[1721130894801,2.91997,3424.7,3424.0,3.81776767]
[1721130894802,0.57893077,3424.3,3424.0,3.81776767]
[1721130895002,0.57893077,3424.2,3424.0,3.81776767]
[1721130895224,2.91997,3424.7,3424.0,3.81776767]
[1721130895524,6.09979,3424.9,3424.1,2.92039]
[1721130895525,0.5788035,3424.6,3424.1,2.92039]
[1721130895690,0.57879505,3424.5,3424.1,2.92039]
[1721130895892,0.57879505,3424.4,3424.1,2.92039]
[1721130896088,0.57879505,3424.3,3424.1,2.92039]
[1721130896289,0.57879505,3424.2,3424.1,2.92039]
[1721130896487,0.57879505,3424.6,3424.1,2.92039]
[1721130896719,0.57879505,3424.5,3424.1,2.92039]
[1721130896918,0.57879505,3424.4,3424.1,2.92039]
[1721130897140,0.57879505,3424.3,3424.1,2.92039]
[1721130897438,0.57879505,3424.2,3424.1,2.92039]
[1721130897783,0.57879505,3424.6,3424.1,2.92039]
[1721130897931,0.57879505,3424.5,3424.1,2.92039]
[1721130898100,0.57879505,3424.4,3424.1,2.92039]
[1721130898305,0.57879505,3424.3,3424.1,2.92039]
[1721130898505,0.57879628,3424.2,3424.1,2.92039]
[1721130898841,0.57879628,3424.6,3424.1,2.92039]
[1721130899145,0.57879628,3424.5,3424.1,2.92039]
[1721130899299,0.57879628,3424.4,3424.1,2.92039]
[1721130899503,0.57879628,3424.3,3424.1,2.92039]
[1721130899809,0.57879628,3424.2,3424.1,2.92039]
[1721130900014,0.57879628,3424.6,3424.1,2.92039]
[1721130900214,0.57879628,3424.6,3424.0,2.92055]
[1721130900215,0.57879628,3424.6,3424.2,2.92037]
[1721130901058,3.0,3424.7,3424.0,2.92048]
[1721130901059,5.91997,3424.7,3424.0,2.92048]
[1721130901199,4.70085188,3424.6,3424.0,2.92048]
[1721130901399,0.57881588,3424.5,3424.0,2.92048]
[1721130902234,5.99155588,3424.5,3423.8,2.92066]
[1721130902444,0.57881588,3424.4,3423.8,2.92066]
[1721130902659,2.92041,3424.2,3423.5,2.92093]
[1721130902859,0.57881588,3424.1,3423.5,2.92093]
[1721130904060,3.49928588,3424.1,3423.5,2.92093]
[1721130904265,2.92047,3424.1,3423.5,2.92093]
[1721130904425,0.57897703,3424.0,3423.5,2.92093]
[1721130904769,0.57896712,3423.9,3423.5,2.92093]
[1721130904917,0.57896712,3423.8,3423.5,2.92093]
[1721130905116,0.57896712,3423.7,3423.5,2.92093]
[1721130905362,0.57896712,3423.6,3423.5,2.92093]
[1721130905657,2.92047,3424.1,3423.5,2.92093]
[1721130905658,0.57896712,3424.0,3423.5,2.92093]
[1721130905863,0.57896712,3424.0,3423.4,2.92104]
[1721130906218,0.57896712,3424.0,3423.4,5.84205]
[1721130906443,0.57896712,3424.0,3423.4,2.92101]
[1721130906657,0.57896712,3424.0,3423.4,5.84202]
[1721130906860,0.57896712,3424.0,3423.4,2.92101]
[1721130907526,2.92047,3424.1,3423.4,2.92101]
[1721130907716,0.57899161,3424.0,3423.4,5.842]
[1721130907939,0.57899161,3424.0,3423.5,3.74629]
[1721130908345,0.57899161,3423.9,3423.6,5.39593]
[1721130908665,0.57899161,3423.8,3423.6,5.39593]
[1721130908972,0.57899161,3423.7,3423.6,5.39593]
[1721130909121,0.57890773,3424.2,3423.7,2.92081]
[1721130910871,0.57890692,3424.1,3423.7,2.92081]
[1721130911035,0.57890692,3424.0,3423.7,3.835017]
[1721130911236,0.57890692,3423.9,3423.7,3.835017]
[1721130911432,0.57890692,3423.8,3423.7,3.835017]
[1721130911745,0.57885752,3424.5,3423.7,3.835017]
[1721130911949,0.57885752,3424.5,3423.9,2.9206]
[1721130912119,0.57885752,3424.5,3424.0,2.92055]
[1721130912320,0.57885752,3424.4,3424.0,2.92055]
[1721130912522,0.57885752,3424.3,3424.0,2.92055]
[1721130912750,0.57885752,3424.2,3424.0,2.92055]
[1721130912962,0.57885752,3424.1,3424.0,2.92055]
[1721130913160,5.82543752,3424.5,3423.8,2.92065]
[1721130913322,0.57885752,3424.4,3423.8,2.92065]
[1721130914045,0.57893229,3424.3,3423.8,2.92065]
[1721130914252,0.57893238,3424.2,3423.8,2.92065]
[1721130914433,0.57893238,3424.1,3423.8,2.92065]
[1721130914643,0.57893238,3424.0,3423.8,2.92065]
[1721130914844,0.57893238,3423.9,3423.8,2.92065]
[1721130915559,0.57893238,3424.4,3423.8,2.92065]
[1721130917399,8.16678,3424.5,3423.8,2.92065]
[1721130917553,0.57893608,3424.4,3423.8,2.92065]
[1721130918081,0.57893835,3424.3,3423.8,2.92065]
[1721130918248,3.49932835,3424.2,3423.7,2.3565]
[1721130918448,0.57893835,3424.1,3423.7,2.3565]
[1721130919167,1.72764346,3424.1,3423.7,2.3565]
[1721130920453,1.72764346,3424.1,3423.8,1.255]
[1721130920846,4.64815346,3424.1,3423.8,1.255]
[1721130921044,0.57893835,3424.0,3423.8,1.255]
[1721130921271,1.72765798,3424.0,3423.8,1.255]
[1721130923293,0.57893835,3424.0,3423.8,1.255]
[1721130923494,0.57893835,3423.9,3423.8,1.255]
[1721130923654,1.72766509,3424.0,3423.8,1.255]
[1721130923863,0.57893835,3423.9,3423.8,1.255]
[1721130924043,0.57897029,3423.9,3423.7,4.17579]
[1721130924239,0.57897029,3423.8,3423.7,4.17579]
[1721130924575,4.76101598,3424.3,3423.7,4.17579]
[1721130924576,0.57897029,3424.2,3423.7,4.17579]
[1721130924875,1.14872782,3424.1,3423.7,4.17579]
[1721130925174,4.76101598,3424.3,3423.7,4.17579]
[1721130925175,1.72769811,3424.0,3423.7,4.17579]
[1721130925380,4.76101598,3424.3,3423.7,4.17579]
[1721130925381,0.57897029,3423.9,3423.7,4.17579]
[1721130925547,0.57897029,3423.8,3423.7,4.17579]
[1721130925970,0.57897029,3424.2,3423.7,4.17579]
[1721130926164,1.14873015,3424.1,3423.7,4.17579]
[1721130926483,1.72770044,3424.0,3423.7,4.17579]
[1721130926784,0.57897029,3423.9,3423.7,4.17579]
[1721130926943,0.57897029,3423.8,3423.7,4.17579]
[1721130927143,4.76101598,3424.3,3423.7,4.17579]
[1721130927144,0.57897029,3424.2,3423.7,4.17579]
[1721130927392,2.92034,3424.3,3423.7,4.17579]
[1721130927393,1.72769788,3424.1,3423.7,4.17579]
[1721130927595,1.72769788,3424.0,3423.7,4.17579]
[1721130927784,2.92034,3424.3,3423.7,4.17579]
[1721130927785,0.57896087,3423.9,3423.7,4.17579]
[1721130927948,0.57896087,3423.8,3423.7,4.17579]
[1721130928274,0.57896087,3424.2,3423.7,4.17579]
[1721130928606,1.72771635,3424.2,3423.7,7.09656]
[1721130929080,1.72771635,3424.2,3423.8,2.92073]
[1721130929748,1.72771635,3424.1,3423.9,1.255]
[1721130929945,1.72771635,3424.0,3423.9,1.255]
[1721130930146,1.14875548,3424.0,3423.9,1.255]
[1721130930552,1.14871381,3424.0,3423.9,1.255]
[1721130930763,4.76083796,3424.4,3423.9,1.255]
[1721130930969,6.27630152,3424.4,3423.9,1.255]
[1721130931446,3.35608152,3424.4,3423.9,4.17562]
[1721130932249,3.35608152,3424.4,3423.9,1.255]
[1721130932250,1.84061796,3424.4,3423.9,1.255]
[1721130932452,4.84061796,3424.7,3424.3,4.1753]
[1721130932673,3.0,3424.7,3424.3,4.1753]
[1721130932971,3.0,3424.8,3424.3,4.1753]
[1721130933174,0.4840618,3424.8,3424.3,4.1753]
[1721130933376,1.84061796,3424.9,3424.3,1.255]
[1721130933573,3.0,3425.1,3424.7,1.255]
[1721130933574,1.84061796,3425.0,3424.7,1.255]
[1721130933779,3.0,3425.1,3424.7,1.255]
[1721130933956,1.84002361,3425.1,3424.7,1.255]
[1721130934159,4.84002361,3425.1,3424.7,1.255]
[1721130934594,2.3492,3425.2,3424.9,4.17479]
[1721130934595,1.84002361,3425.2,3424.9,4.17479]
[1721130934908,1.84002361,3425.3,3425.1,1.255]
[1721130935068,1.84002361,3425.6,3425.1,4.1746]
[1721130935457,1.84002361,3425.7,3425.1,4.1746]
[1721130935683,0.75664076,3425.6,3425.1,4.1746]
[1721130936082,1.84002361,3425.7,3425.3,1.255]
[1721130936261,12.43549422,3426.1,3425.1,5.32306]
[1721130936262,1.84002361,3425.9,3425.1,5.32306]
[1721130936668,12.6552,3426.1,3425.1,5.32306]
[1721130936669,1.84002361,3426.0,3425.1,5.32306]
[1721130937199,7.75659713,3426.0,3425.3,2.91945]
[1721130937707,5.9189,3426.0,3425.3,2.91945]
[1721130937856,0.55,3425.9,3425.3,2.91945]
[1721130938056,1.35917971,3425.8,3425.3,2.91945]
[1721130945282,6.46897,3425.9,3425.3,2.91945]
[1721130947497,3.0,3425.9,3425.5,2.91921]
[1721130947847,3.37658493,3426.5,3425.7,2.91904]
[1721130948191,5.83698,3426.5,3425.7,5.8381]
[1721130948396,1.129728,3426.4,3425.7,2.91904]
[1721130948592,1.129728,3426.4,3425.8,2.91902]
[1721130948974,0.55,3426.3,3425.8,2.91902]
[1721130950519,3.18,3426.7,3426.1,2.91875]
[1721130950722,0.55,3426.6,3426.1,2.91875]
[1721130950926,3.18,3426.7,3426.0,2.91877]
[1721130951217,3.18,3426.7,3426.2,2.91868]
[1721130951381,3.18,3426.7,3426.3,2.91859]
[1721130952114,3.18,3426.7,3426.5,2.3605]
[1721130952313,3.18,3426.7,3426.5,5.27892]
[1721130952485,3.0415577,3427.2,3426.6,2.91832]
[1721130953390,3.0415577,3427.2,3426.6,3.738053]
[1721130954606,5.9593877,3427.2,3426.6,3.738053]
[1721130955238,5.9593877,3427.2,3426.5,2.3605]
[1721130955405,6.01778122,3427.2,3426.5,2.3605]
[1721130955592,2.918,3427.0,3426.5,2.3605]
[1721130959396,5.83574,3427.2,3426.5,2.3605]
[1721130959618,2.91783,3427.2,3426.5,2.3605]
[1721130959819,2.91793,3427.1,3426.5,2.3605]
[1721130960243,2.91783,3427.2,3426.5,3.180265]
[1721130960445,2.91793,3427.1,3426.5,3.180265]
[1721130960595,2.91793,3427.1,3426.5,2.3605]
[1721130961053,10.37,3427.6,3426.5,3.01]
[1721130961348,2.91744,3427.7,3426.9,2.91808]
[1721130961349,5.91758,3427.5,3426.9,2.91808]
[1721130961671,0.883502,3427.4,3426.9,2.91808]
[1721130961951,2.91758,3427.5,3426.9,2.91808]
[1721130962409,3.0,3427.6,3426.9,2.91808]
[1721130962886,5.91749,3427.6,3426.9,2.91808]
[1721130963030,2.91749,3427.6,3426.9,2.91808]
[1721130963217,2.91741,3427.7,3427.0,5.37649]
[1721130963411,2.91727,3427.9,3427.0,3.287957]
[1721130963615,3.0,3427.7,3427.0,2.4585]
[1721130964336,3.0,3427.7,3427.2,2.91781]
[1721130964866,2.9171,3428.1,3427.3,2.91774]
[1721130965068,5.91699,3428.2,3427.5,2.91755]
[1721130965352,7.53738,3428.2,3427.5,2.91755]
[1721130966345,4.62039,3428.2,3427.5,2.91749]
[1721130966561,10.28681,3428.4,3427.7,2.9174]
[1721130966722,2.91681,3428.4,3427.7,2.9174]
[1721130967253,2.91665,3428.6,3427.8,5.35221]
[1721130967403,0.55,3428.5,3427.8,5.35221]
[1721130968017,0.55,3428.5,3427.8,2.4349]
[1721130968302,2.91655,3428.7,3428.0,2.91714]
[1721130968498,2.91669,3428.6,3428.0,2.91714]
[1721130968702,2.91669,3428.6,3427.8,3.261861]
[1721130968703,2.91669,3428.6,3427.9,2.9172]
[1721130969439,2.91674,3428.5,3427.8,2.4349]
[1721130970406,5.83387,3428.3,3427.8,2.4349]
[1721130970717,2.917,3428.2,3427.8,2.4349]
[1721130971119,2.917,3428.2,3427.5,5.38617]
[1721130971321,2.917,3428.2,3427.6,2.91748]
[1721130971519,2.91685,3428.4,3427.6,2.91748]
[1721130971840,2.91685,3428.4,3427.6,3.747845]
[1721130972153,2.91685,3428.4,3427.7,2.4686]
[1721130972643,2.91676,3428.5,3427.7,5.38599]
[1721130973154,2.9169,3428.3,3427.7,5.38599]
[1721130973468,2.91698,3428.2,3427.7,2.4686]
[1721130973629,0.05839352,3428.8,3427.7,2.4686]
[1721130973630,2.91726,3427.9,3427.7,2.4686]
[1721130973833,2.91726,3427.9,3427.3,2.2804]
[1721130974250,2.91733,3427.8,3427.3,2.2804]
[1721130976543,0.55,3427.7,3427.3,2.2804]
[1721130976976,3.46748,3427.7,3427.3,2.2804]
[1721130977470,0.55,3427.7,3427.3,2.2804]
[1721130977639,2.91749,3427.6,3427.3,2.2804]
[1721130978845,0.55,3427.7,3427.3,2.2804]
[1721130979268,2.91726,3427.9,3427.3,2.2804]
[1721130980343,3.2673248,3427.9,3427.3,2.2804]
[1721130980670,2.91737,3427.8,3427.3,2.2804]
[1721130981645,0.583388,3428.1,3427.3,5.19814]
[1721130981845,0.55,3428.0,3427.3,5.19814]
[1721130982041,3.55,3428.0,3427.3,8.11583]
[1721130982245,3.0,3428.0,3427.5,2.91756]
[1721130982478,3.0,3428.1,3427.6,2.91747]
[1721130982660,3.0,3428.2,3427.6,2.91747]
[1721130983182,2.91693,3428.3,3427.6,2.91747]
[1721130983744,2.91693,3428.3,3427.7,2.2703]
[1721130984553,5.8339,3428.3,3427.7,2.2703]
[1721130984758,6.71729,3428.3,3427.7,2.2703]
[1721130984944,3.80032,3428.3,3427.7,2.2703]
[1721130987747,2.91693,3428.3,3427.7,2.2703]
[1721130987946,5.8339,3428.3,3427.7,2.2703]
[1721130988277,2.91693,3428.3,3427.7,2.2703]
[1721130988577,2.917,3428.2,3427.7,2.2703]
[1721130988979,2.91716,3428.0,3427.4,2.3566]
[1721130989283,0.60839352,3427.9,3427.0,2.2808]
[1721130989483,2.91779,3427.3,3427.0,2.2808]
[1721130989780,2.91779,3427.3,3426.7,7.3]
[1721130990309,2.423,3427.7,3426.0,2.2808]
[1721130990310,0.05839352,3427.2,3426.0,2.2808]
[1721130990451,2.91827,3426.7,3426.0,2.2808]
[1721130990653,2.91843,3426.5,3426.0,2.2808]
[1721130991151,3.501932,3426.7,3426.0,2.2808]
[1721130991152,3.49683543,3426.4,3426.0,2.2808]
[1721130991392,2.91851,3426.4,3425.6,5.33035]
[1721130991602,3.49696225,3426.3,3425.6,2.4112]
[1721130991822,2.9186,3426.3,3425.6,2.4112]
[1721130992171,2.9186,3426.3,3425.7,2.9191]
[1721130992473,2.91849,3426.5,3425.7,3.744065]
[1721130992778,0.57835895,3426.4,3425.7,3.744065]
[1721130993186,2.91849,3426.5,3425.7,3.744065]
[1721130993474,2.91864,3426.3,3425.6,2.4112]
[1721130993879,2.97709352,3426.2,3425.6,2.4112]
[1721130994393,2.9187,3426.2,3425.6,2.4112]
[1721130995277,2.91853,3426.4,3425.6,5.33038]
[1721130996788,2.3434,3427.4,3425.8,2.4288]
[1721130997109,2.91814,3426.9,3426.1,2.9187]
[1721130997414,0.57826301,3426.8,3426.1,2.9187]
[1721130997778,3.57826301,3426.8,3426.2,2.91865]
[1721130998076,5.91819,3426.8,3426.0,2.91882]
[1721130998275,1.4619191,3426.7,3425.8,2.4288]
[1721130998492,2.91832,3426.7,3425.9,2.91887]
[1721130998728,0.55,3426.6,3425.8,2.4288]
[1721130999011,3.49678113,3426.5,3425.8,2.4288]
[1721130999312,2.91843,3426.5,3425.8,2.4288]
[1721130999475,2.91843,3426.5,3425.8,5.34782]
[1721131000877,2.91857,3426.4,3425.8,2.4288]
[1721131001083,3.4684,3426.6,3425.8,2.4288]
[1721131001311,3.4684,3426.6,3425.9,0.534784]
[1721131001615,3.4684,3426.6,3425.9,6.372574]
[1721131001909,3.4684,3426.6,3425.9,3.453654]
[1721131002114,3.4684,3426.6,3425.8,2.4288]
[1721131002115,2.91843,3426.5,3425.8,2.4288]
[1721131002617,2.91856,3426.4,3425.8,2.4288]
[1721131003311,2.91856,3426.4,3425.5,2.91921]
[1721131003484,2.91869,3426.2,3425.5,5.39061]
[1721131003811,2.91869,3426.2,3425.6,2.91919]
[1721131004118,2.91843,3426.5,3425.8,2.919]
[1721131004615,2.91821,3426.8,3425.5,3.010461]
[1721131004616,2.91821,3426.8,3426.1,2.4714]
[1721131004920,3.0,3426.7,3426.1,5.39011]
[1721131005713,5.91825,3426.7,3426.1,5.39014]
[1721131006017,2.91804,3427.0,3426.1,5.39014]
[1721131006018,2.91817,3426.8,3426.2,2.91867]
[1721131006215,7.37,3427.3,3426.2,2.91867]
[1721131006216,3.0,3427.1,3426.2,2.91867]
[1721131006421,2.91809,3426.9,3426.2,2.91867]
[1721131006585,2.91823,3426.8,3426.2,2.91867]
[1721131008429,2.91809,3426.9,3426.1,2.4714]
[1721131008592,2.9183,3426.7,3426.1,2.4714]
[1721131010083,2.91845,3426.5,3426.1,2.4714]
[1721131011120,5.83696,3426.5,3425.8,2.3328]
[1721131011300,5.83696,3426.5,3425.8,6.1228361]
[1721131011496,2.91845,3426.5,3425.8,6.1228361]
[1721131011702,5.83695,3426.5,3425.8,6.1228361]
[1721131011904,2.91863,3426.3,3425.8,2.3328]
[1721131013126,2.91883,3426.1,3425.8,2.3328]
[1721131014311,5.83729,3426.3,3425.8,2.3328]
[1721131014515,0.55,3426.2,3425.8,2.3328]
[1721131016740,2.91863,3426.3,3425.8,2.3328]
[1721131020222,2.91829,3426.7,3425.9,2.91892]
[1721131020500,13.20626,3426.9,3425.9,2.91892]
[1721131020803,13.20626,3426.9,3425.8,3.149915]
[1721131020804,3.5782429,3426.8,3426.2,5.30038]
[1721131021012,10.28809,3426.9,3426.2,5.30038]
[1721131021204,2.91823,3426.8,3426.2,5.30038]
[1721131023438,5.83647,3426.8,3426.2,5.30038]
[1721131024710,2.91823,3426.8,3426.2,5.30038]
[1721131024913,7.37,3426.9,3426.2,6.122307]
[1721131025132,10.28814,3426.9,3426.2,6.122307]
[1721131025324,2.91818,3426.8,3426.2,6.122307]
[1721131025736,2.91818,3426.8,3426.2,5.30038]
[1721131027234,5.83643,3426.8,3426.2,5.30038]
[1721131027534,0.57826737,3426.7,3425.9,2.316]
[1721131027734,2.91852,3426.4,3425.9,2.316]